bitfinex-derivatives/quotes_ETHF0:USTF0_20250607
["timestamp","ask_amount","ask_price","bid_price","bid_amount"]
[1749316099172,1.16643546,2513.2,2513.1,2.76597]
[1749316101668,0.00597669,2513.3,2513.2,0.79543]
[1749316101873,1.17144595,2513.3,2513.2,2.12973]
[1749316102771,1.96684595,2513.3,2513.2,2.12973]
[1749316103669,1.96684595,2513.3,2513.2,1.3343]
[1749316103975,1.96684595,2513.3,2513.2,2.12973]
[1749316104275,1.17144595,2513.3,2513.2,2.12973]
[1749316104475,1.96684595,2513.3,2513.2,2.12973]
[1749316106773,0.00597669,2513.3,2513.2,2.12973]
[1749316106970,1.17126851,2513.3,2513.2,2.12973]
[1749316107673,3.2078,2513.9,2513.8,0.79525]
[1749316108681,4.00301,2513.9,2513.8,0.79525]
[1749316108876,3.2078,2513.9,2513.6,1.32187669]
[1749316109377,0.79528,2513.7,2513.6,0.00597669]
[1749316109977,2.79238,2513.7,2513.6,0.00597669]
[1749316114377,1.42718,2513.7,2513.6,0.00597669]
[1749316115082,2.71308,2513.7,2513.6,0.00597669]
[1749316117783,2.71308,2513.7,2513.6,0.80128669]
[1749316117784,5.47328,2513.7,2513.6,0.80128669]
[1749316117988,4.678,2513.8,2513.7,0.79528]
[1749316118380,3.2078,2513.9,2513.8,0.79525]
[1749316118579,4.00301,2513.9,2513.8,0.79525]
[1749316119484,5.15702587,2513.9,2513.8,0.79525]
[1749316123083,0.79527,2513.8,2513.7,0.79526]
[1749316123287,1.94928587,2513.8,2513.7,0.79526]
[1749316125589,1.15401587,2513.8,2513.7,0.79526]
[1749316126191,1.94926587,2513.8,2513.7,0.79526]
[1749316129494,0.79528,2513.7,2513.6,1.48146669]
[1749316129691,1.94929587,2513.7,2513.6,1.48146669]
[1749316129897,0.79528,2513.7,2513.6,1.48146669]
[1749316130298,1.94783253,2513.7,2513.6,1.48146669]
[1749316132085,1.15255253,2513.7,2513.6,1.48146669]
[1749316132695,1.94791694,2513.7,2513.6,1.48146669]
[1749316133594,6.62091694,2513.7,2513.6,0.00597669]
[1749316133801,8.59851694,2513.7,2513.6,0.00597669]
[1749316135195,0.79543,2513.2,2513.1,0.675]
[1749316135391,0.79547,2513.1,2513.0,0.79547]
[1749316135596,0.79551,2513.0,2512.9,1.4578]
[1749316135802,0.79549,2513.1,2513.0,0.79548]
[1749316137099,0.79546,2513.2,2513.1,0.79546]
[1749316137299,1.94772371,2513.2,2513.1,0.79546]
[1749316137704,0.79548,2513.1,2513.0,0.79548]
[1749316138505,0.79546,2513.2,2513.1,0.79545]
[1749316138695,1.94757659,2513.2,2513.1,0.79545]
[1749316139197,0.79546,2513.2,2513.1,0.79545]
[1749316139398,8.67622,2513.3,2513.2,0.79543]
[1749316139699,9.82821188,2513.3,2513.2,0.79543]
[1749316140301,9.03279188,2513.3,2512.9,0.6623]
[1749316140598,9.03279188,2513.3,2513.2,0.79543]
[1749316140599,8.67622,2513.3,2513.2,0.79543]
[1749316140799,9.828189,2513.3,2513.2,0.79543]
[1749316141292,9.032769,2513.3,2513.2,0.79543]
[1749316141492,4.674,2513.5,2513.4,0.79537]
[1749316141698,5.82600448,2513.5,2513.4,0.79537]
[1749316142094,4.674,2513.5,2513.4,2.12077]
[1749316142904,3.2078,2513.6,2513.5,0.79534]
[1749316143095,4.3596577,2513.6,2513.5,2.12074]
[1749316143303,3.2078,2513.6,2513.5,2.12074]
[1749316143501,1.15182359,2513.6,2513.5,2.12074]
[1749316143799,0.79528,2513.7,2513.6,0.79531]
[1749316143994,1.94716134,2513.7,2513.6,0.79531]
[1749316144199,1.15188134,2513.7,2513.6,1.44611]
[1749316144901,5.15496134,2513.7,2513.6,0.6508]
[1749316146101,0.79531,2513.6,2513.5,0.79534]
[1749316146394,1.94719134,2513.6,2513.5,0.79534]
[1749316147004,0.79539,2513.4,2513.3,0.79539]
[1749316147200,0.79536,2513.5,2513.4,0.79537]
[1749316147397,1.94771702,2513.5,2513.4,0.79537]
[1749316148106,1.15235702,2513.5,2513.4,0.79537]
[1749316149710,1.94769702,2513.5,2513.4,0.79537]
[1749316150809,0.79539,2513.4,2513.3,0.79539]
[1749316151008,1.94774702,2513.4,2513.3,0.79539]
[1749316152103,1.15235702,2513.4,2513.3,0.79539]
[1749316152310,0.06891172,2513.6,2513.5,0.79534]
[1749316152608,3.2078,2513.7,2513.6,0.79531]
[1749316154002,3.2078,2513.7,2513.6,2.77951]
[1749316155010,4.00308,2513.7,2513.6,2.77951]
[1749316155608,0.79528,2513.7,2513.6,1.9842]
[1749316155904,1.98828,2513.6,2512.9,0.79552]
[1749316156114,0.79547,2513.1,2513.0,0.6901]
[1749316159409,0.79547,2513.1,2513.0,1.48557]
[1749316159909,0.79546,2513.2,2513.1,0.79546]
[1749316160314,0.79547,2513.1,2513.0,1.48558]
[1749316160613,0.86438172,2513.1,2513.0,1.48558]
[1749316161512,0.06891172,2513.1,2513.0,1.48558]
[1749316162615,0.79545,2513.2,2513.1,0.79547]
[1749316163516,0.79545,2513.2,2513.1,0.79545]
[1749316163817,5.46742,2513.3,2513.0,0.6901]
[1749316164012,5.46742,2513.3,2513.1,1.279]
[1749316164315,0.79542,2513.3,2513.2,0.7954]
[1749316164516,3.2078,2513.4,2513.1,1.279]
[1749316164517,3.2078,2513.4,2513.3,0.7954]
[1749316164718,3.2078,2513.8,2513.2,1.98859]
[1749316164912,1.94663743,2513.7,2513.6,0.79531]
[1749316165219,0.79531,2513.6,2513.5,0.79532]
[1749316165417,0.79535,2513.5,2513.4,0.79535]
[1749316165722,0.79533,2513.6,2513.5,0.79534]
[1749316165920,1.9467156,2513.6,2513.5,0.79534]
[1749316166322,1.1513856,2513.6,2513.5,0.79534]
[1749316167121,1.9466956,2513.6,2513.5,0.79534]
[1749316167625,0.79536,2513.5,2513.4,0.79536]
[1749316168219,0.79533,2513.6,2513.5,0.79533]
[1749316168423,1.94678684,2513.6,2513.5,0.79533]
[1749316168824,0.79535,2513.5,2513.4,0.79535]
[1749316170229,0.79536,2513.5,2513.4,0.79536]
[1749316170530,0.79537,2513.4,2513.3,1.46799]
[1749316171428,1.94693046,2513.4,2513.3,1.46799]
[1749316172430,1.94693046,2513.4,2513.3,0.6726]
[1749316172725,0.86438172,2513.1,2513.0,0.6901]
[1749316172925,0.86438172,2513.1,2513.0,0.659]
[1749316173431,0.86438172,2513.1,2513.0,1.4545]
[1749316174020,0.86438172,2513.1,2513.0,0.659]
[1749316174218,0.86438172,2513.1,2513.0,1.4545]
[1749316175130,0.7955,2513.0,2512.8,0.00597669]
[1749316175322,0.7955,2513.0,2512.9,0.79553]
[1749316176829,0.86440172,2513.1,2513.0,0.7955]
[1749316177626,0.06891172,2513.1,2513.0,0.7955]
[1749316177827,4.00324,2513.2,2513.1,0.79547]
[1749316178128,5.15034357,2513.2,2513.1,0.79547]
[1749316182432,9.82234357,2513.2,2513.1,0.79547]
[1749316183430,9.02690357,2513.2,2513.1,0.79547]
[1749316183735,5.81910357,2513.2,2513.1,0.79547]
[1749316184627,1.14710357,2513.2,2513.1,0.79547]
[1749316184832,6.61453357,2513.2,2513.1,0.79547]
[1749316185431,5.81910357,2513.2,2513.1,0.79547]
[1749316185826,5.81910357,2513.2,2513.1,1.00811445]
[1749316187437,6.61453357,2513.2,2513.1,1.00811445]
[1749316188338,5.46743,2513.2,2513.1,1.00811445]
[1749316188532,6.61136679,2513.2,2513.1,1.00811445]
[1749316190937,9.81916679,2513.2,2513.1,0.21264445]
[1749316191641,8.67523,2513.2,2513.1,0.21264445]
[1749316191841,9.81965746,2513.2,2513.1,0.21264445]
[1749316196145,9.88856918,2513.2,2513.1,0.21264445]
[1749316197046,9.88856918,2513.2,2513.1,1.00811445]
[1749316197857,9.88856918,2513.2,2513.1,0.21264445]
[1749316199247,10.51715746,2513.2,2513.1,0.21264445]
[1749316200447,10.58606918,2513.2,2513.1,0.21264445]
[1749316201252,10.51715746,2513.2,2513.1,0.21264445]
[1749316205955,5.14765746,2513.2,2513.1,0.21264445]
[1749316206254,9.81965746,2513.2,2513.1,0.21264445]
[1749316206454,9.81965746,2513.2,2513.1,0.87544445]
[1749316208051,0.79553,2512.9,2512.8,0.00597669]
[1749316208248,5.14775746,2512.9,2512.8,0.00597669]
[1749316209348,5.14775746,2512.9,2512.8,0.80153669]
[1749316211457,1.93995746,2512.9,2512.8,0.80153669]
[1749316211655,1.93995746,2512.9,2512.8,2.08523669]
[1749316215055,0.79553,2512.9,2512.8,2.08523669]
[1749316215757,1.93848217,2512.9,2512.8,2.08523669]
[1749316218165,1.14295217,2512.9,2512.8,2.08523669]
[1749316218663,1.93848217,2512.9,2512.8,2.08523669]
[1749316218864,1.14295217,2512.9,2512.8,2.08523669]
[1749316219065,1.93848217,2512.9,2512.8,2.08523669]
[1749316220466,0.79553,2512.9,2512.8,2.08523669]
[1749316220663,2.00572335,2512.9,2512.8,2.08523669]
[1749316221572,1.14128163,2512.9,2512.8,2.08523669]
[1749316225067,1.93681163,2512.9,2512.8,2.08523669]
[1749316225267,1.14128163,2512.9,2512.8,2.08523669]
[1749316225669,1.93681163,2512.9,2512.8,2.08523669]
[1749316225869,1.14128163,2512.9,2512.8,2.08523669]
[1749316226269,0.79552,2513.0,2512.9,0.79553]
[1749316226463,1.93787483,2513.0,2512.9,1.9721]
[1749316226663,1.93787483,2513.0,2512.9,0.6371]
[1749316227764,1.93787483,2513.0,2512.9,1.43263]
[1749316227960,1.93787483,2513.0,2512.9,0.6371]
[1749316229369,1.93787483,2513.0,2512.9,1.43263]
[1749316230171,0.79552,2513.0,2512.9,1.43263]
[1749316231065,1.93786909,2513.0,2512.9,1.43263]
[1749316231264,0.79552,2513.0,2512.9,1.43263]
[1749316232768,1.14245481,2513.0,2512.9,1.43263]
[1749316233162,1.14245481,2513.0,2512.9,2.72243]
[1749316234775,4.671,2513.2,2512.9,2.72243]
[1749316234776,4.671,2513.2,2513.1,0.79547]
[1749316235172,0.79539,2513.4,2513.3,0.7954]
[1749316235475,5.46636,2513.5,2513.4,0.79537]
[1749316235974,35.10505954,2513.8,2513.1,3.37315]
[1749316236175,11.04105954,2513.8,2513.2,1.3845]
[1749316236377,11.04105954,2513.8,2513.5,0.79533]
[1749316236575,0.79528,2513.7,2513.6,0.6915]
[1749316237364,13.02920954,2513.8,2513.1,3.2078]
[1749316237569,3.2078,2513.5,2513.0,0.6915]
[1749316237763,6.0416,2513.4,2513.0,0.6915]
[1749316237971,0.79544,2513.2,2513.1,0.79544]
[1749316238475,0.79542,2513.3,2513.2,0.79543]
[1749316240370,5.46638,2513.4,2513.3,0.7954]
[1749316241773,0.79542,2513.3,2513.2,0.79542]
[1749316241973,0.79542,2513.3,2513.2,2.15192]
[1749316242376,0.79542,2513.3,2513.2,0.79542]
[1749316242772,0.79543,2513.2,2513.1,1.43214]
[1749316243371,0.79543,2513.3,2513.2,0.79542]
[1749316244989,1.91394267,2513.3,2513.2,0.79542]
[1749316245183,1.11851267,2513.3,2513.2,0.79542]
[1749316245486,0.79539,2513.4,2513.3,0.7954]
[1749316245688,1.91388381,2513.4,2513.3,0.7954]
[1749316245888,1.11849381,2513.4,2513.3,0.7954]
[1749316246288,8.67316,2513.5,2513.4,0.79537]
[1749316246490,9.79162253,2513.5,2513.4,0.79537]
[1749316250188,8.67316,2513.5,2513.4,0.79537]
[1749316250592,3.2078,2513.8,2513.3,0.6624]
[1749316250787,0.79532,2513.6,2513.5,0.79531]
[1749316250984,0.79532,2513.6,2513.5,1.47471]
[1749316251185,0.7953,2513.7,2513.6,0.79529]
[1749316251485,0.7953,2513.7,2513.6,1.46899]
[1749316251683,0.7953,2513.7,2513.6,0.6737]
[1749316252389,0.7953,2513.7,2513.6,1.46901]
[1749316252889,0.7953,2513.7,2513.6,0.6737]
[1749316253589,0.7953,2513.7,2513.6,1.46901]
[1749316255985,0.7953,2513.7,2513.6,0.6737]
[1749316256289,0.7953,2513.7,2513.6,1.46901]
[1749316257685,0.7953,2513.7,2513.6,0.6737]
[1749316257889,0.7953,2513.7,2513.6,1.46901]
[1749316258081,0.7953,2513.7,2513.6,0.79531]
[1749316258288,1.91542589,2513.7,2513.6,0.79531]
[1749316259091,0.7953,2513.7,2513.6,0.79531]
[1749316259486,1.91583365,2513.7,2513.6,0.79531]
[1749316259687,0.79534,2513.6,2513.5,0.79531]
[1749316260592,0.7953,2513.7,2513.6,0.79528]
[1749316260795,1.91581393,2513.7,2513.6,0.79528]
[1749316261287,0.79534,2513.6,2513.5,0.79532]
[1749316262583,0.7953,2513.7,2513.6,0.79528]
[1749316262791,4.00307,2513.8,2513.7,0.79528]
[1749316262990,5.12309461,2513.8,2513.7,0.79528]
[1749316263694,4.32781645,2513.8,2513.7,0.79528]
[1749316264988,0.79531,2513.7,2513.6,0.7953]
[1749316265194,0.79531,2513.6,2513.5,2.06051]
[1749316265790,0.79534,2513.5,2513.4,0.6529]
[1749316265994,0.79534,2513.5,2513.3,50.042]
[1749316265995,0.79537,2513.4,2513.3,50.042]
[1749316266188,0.79537,2513.4,2513.3,50.8374]
[1749316267091,1.46567,2513.4,2513.3,50.042]
[1749316267990,1.46567,2513.4,2513.3,50.8374]
[1749316268390,0.79537,2513.4,2513.3,50.8374]
[1749316269694,0.79533,2513.6,2513.5,0.79532]
[1749316269895,6.58645617,2513.6,2513.5,0.79532]
[1749316270887,0.79537,2513.4,2513.3,50.83737]
[1749316271791,0.79536,2513.5,2513.4,0.79535]
[1749316271990,1.91569838,2513.5,2513.4,0.79535]
[1749316272798,1.12033838,2513.5,2513.4,0.79535]
[1749316274188,1.12033838,2513.5,2513.4,2.11995]
[1749316276298,1.12033838,2513.5,2513.4,2.78905]
[1749316276999,5.46731,2513.6,2513.5,0.79534]
[1749316277197,5.79359978,2513.6,2513.5,2.06744]
[1749316277597,6.58890978,2513.6,2513.5,2.06744]
[1749316278303,1.91690978,2513.6,2513.5,2.06744]
[1749316279702,0.79534,2513.5,2513.4,1.46445]
[1749316279897,1.91693978,2513.5,2513.4,1.46445]
[1749316283804,1.12159978,2513.5,2513.4,1.46445]
[1749316287108,1.94149474,2513.6,2513.5,0.79534]
[1749316287306,1.94148786,2513.6,2513.5,2.73784]
[1749316288407,1.14617786,2513.6,2513.5,2.73784]
[1749316289410,1.94148786,2513.6,2513.5,2.73784]
[1749316289899,1.14617786,2513.6,2513.5,2.73784]
[1749316290503,4.00305,2513.8,2513.7,0.79528]
[1749316290709,5.14754805,2513.8,2513.7,0.79528]
[1749316291714,0.7953,2513.7,2513.6,0.79529]
[1749316291915,1.93979805,2513.7,2513.6,0.79529]
[1749316292406,0.79534,2513.5,2513.4,1.46446]
[1749316292711,0.79537,2513.4,2513.3,0.79538]
[1749316293014,1.93976495,2513.4,2513.3,0.79538]
[1749316293313,1.14439495,2513.4,2513.0,0.6876]
[1749316293614,0.79546,2513.2,2513.1,0.79545]
[1749316293914,2.71053,2513.3,2513.2,0.79543]
[1749316294212,3.85466512,2513.3,2513.2,0.79543]
[1749316295515,0.79545,2513.2,2513.1,0.79544]
[1749316295716,2.71053,2513.3,2513.2,0.79543]
[1749316295911,0.79552,2513.0,2512.9,0.79553]
[1749316296217,4.00331,2513.0,2512.9,0.79553]
[1749316296913,3.2078,2513.0,2512.9,0.79553]
[1749316297815,3.2078,2513.0,2512.9,1.49223]
[1749316300121,0.79549,2513.1,2513.0,0.7955]
[1749316300322,3.2078,2513.1,2513.0,0.7955]
[1749316301015,6.12355,2513.2,2513.0,0.7955]
[1749316301319,3.2078,2513.1,2513.0,50.8335]
[1749316302519,4.00327,2513.1,2513.0,50.8335]
[1749316303610,5.30937,2513.1,2513.0,50.8335]
[1749316303809,2.10157,2513.1,2513.0,50.8335]
[1749316305315,9.33135,2513.2,2513.1,0.79547]
[1749316305614,10.47282053,2513.2,2513.1,0.79547]
[1749316306613,10.47271053,2513.2,2513.1,0.79547]
[1749316307018,0.79547,2513.1,2513.0,50.83348]
[1749316307217,0.79547,2513.1,2513.0,50.038]
[1749316307411,9.33136,2513.2,2513.0,50.038]
[1749316307614,9.33136,2513.2,2513.1,0.79547]
[1749316307811,10.47263114,2513.2,2513.1,0.79547]
[1749316309523,0.79547,2513.1,2513.0,50.83348]
[1749316309914,0.79547,2513.1,2513.0,50.038]
[1749316311122,4.00327,2513.1,2513.0,50.8335]
[1749316312422,3.2078,2513.1,2513.0,50.8335]
[1749316313023,3.2078,2513.1,2513.0,51.4997]
[1749316313627,4.00327,2513.1,2513.0,51.4997]
[1749316314427,4.00327,2513.1,2513.0,50.7042]
[1749316314631,4.00327,2513.1,2513.0,50.038]
[1749316316139,4.00327,2513.1,2513.0,50.8335]
[1749316318636,4.00327,2513.1,2513.0,50.038]
[1749316319034,4.00327,2513.1,2513.0,50.8335]
[1749316319536,4.00327,2513.1,2513.0,50.038]
[1749316319742,5.14531558,2513.1,2513.0,50.038]
[1749316319940,7.20371558,2513.1,2513.0,50.038]
[1749316320136,12.20371558,2513.1,2513.0,50.038]
[1749316320642,12.20371558,2513.1,2513.0,12.65727242]
[1749316320836,12.20371558,2513.1,2513.0,8.00501638]
[1749316321036,15.35685044,2513.1,2513.0,4.43473907]
[1749316321237,15.35685044,2513.1,2513.0,2.27634907]
[1749316321745,0.79553,2512.9,2512.8,0.00597669]
[1749316321931,43.01053,2512.9,2512.8,0.00597669]
[1749316322242,49.15257558,2512.9,2512.8,0.00597669]
[1749316322442,50.48497558,2512.9,2512.8,0.00597669]
[1749316330150,53.69277558,2512.9,2512.8,0.00597669]
[1749316331853,48.69277558,2512.9,2512.8,0.00597669]
[1749316332153,53.69277558,2512.9,2512.8,0.00597669]
[1749316332954,50.48497558,2512.9,2512.8,0.00597669]
[1749316333153,53.69277558,2512.9,2512.8,0.00597669]
[1749316333354,48.69277558,2512.9,2512.8,0.00597669]
[1749316334754,48.69277558,2512.9,2512.8,6.69e-06]
[1749316335153,53.69277558,2512.9,2512.8,6.69e-06]
[1749316336049,0.79572,2512.3,2512.2,0.665]
[1749316336254,9.81556558,2512.3,2512.2,0.665]
[1749316336647,14.01984558,2512.3,2511.2,0.7782]
[1749316336853,0.79597,2511.5,2511.4,2.6607]
[1749316337047,0.79597,2511.5,2511.4,3.4567]
[1749316337249,0.79597,2511.5,2511.4,2.6607]
[1749316337447,0.79597,2511.5,2511.4,1.3355]
[1749316337658,0.79604,2511.3,2511.2,0.00597669]
[1749316337856,8.67384,2511.3,2511.2,0.00597669]
[1749316339049,4.00384,2511.3,2511.2,0.00597669]
[1749316339255,8.67384,2511.3,2511.2,0.00597669]
[1749316340658,8.67384,2511.3,2511.2,0.70487669]
[1749316344061,4.00384,2511.3,2511.2,0.70487669]
[1749316344260,8.67484,2511.3,2511.2,0.70487669]
[1749316344471,8.67484,2511.3,2511.2,1.50094669]
[1749316345064,8.67484,2511.3,2511.2,0.70487669]
[1749316345561,8.67484,2511.3,2511.2,1.50094669]
[1749316345858,7.8788,2511.3,2511.2,1.50094669]
[1749316346061,8.67484,2511.3,2511.2,0.70487669]
[1749316347556,8.74375172,2511.3,2511.2,0.70487669]
[1749316350757,8.67484,2511.3,2511.2,0.70487669]
[1749316351761,8.74375172,2511.3,2511.2,0.70487669]
[1749316352755,4.07275172,2511.3,2511.2,0.70487669]
[1749316352957,8.74375172,2511.3,2511.2,0.70487669]
[1749316354157,8.74375172,2511.3,2511.2,2.02667669]
[1749316357268,4.07275172,2511.3,2511.2,2.02667669]
[1749316357563,8.74375172,2511.3,2511.2,2.82274669]
[1749316359761,8.67484,2511.3,2511.2,2.82274669]
[1749316360471,7.8788,2511.3,2511.2,2.82274669]
[1749316360977,3.2078,2511.3,2511.2,7.82274669]
[1749316361276,4.671,2511.5,2511.4,0.796]
[1749316362476,3.21377669,2511.7,2511.6,0.79594]
[1749316362767,5.14364509,2511.7,2511.6,0.79594]
[1749316362968,9.81464509,2511.7,2511.6,0.79594]
[1749316363873,9.01873509,2511.7,2511.6,2.81194]
[1749316364072,9.81464509,2511.7,2511.6,2.81194]
[1749316365477,9.01873509,2511.7,2511.6,2.81194]
[1749316365679,4.34773509,2511.7,2511.6,2.81194]
[1749316366973,3.21377669,2511.7,2511.6,7.81194]
[1749316368374,0.00597669,2511.7,2511.6,7.81194]
[1749316369977,0.07488841,2511.7,2511.6,7.81194]
[1749316371178,0.00597669,2511.7,2511.6,7.81194]
[1749316371986,0.07488841,2511.7,2511.6,7.81194]
[1749316372977,0.00597669,2511.7,2511.6,7.81194]
[1749316373767,0.80188669,2511.7,2511.6,1.43354]
[1749316373971,0.80188669,2511.7,2511.6,0.79594]
[1749316373972,1.55819841,2511.7,2511.6,0.79594]
[1749316375174,0.76228841,2511.7,2511.6,0.79594]
[1749316376279,1.55819841,2511.7,2511.6,0.79594]
[1749316379787,0.76228841,2511.7,2511.5,0.79594]
[1749316380082,4.00377,2511.6,2511.5,0.79597]
[1749316380290,0.79598,2511.5,2511.4,0.79598]
[1749316380581,0.79601,2511.4,2511.3,0.79601]
[1749316380771,0.6601,2511.4,2511.3,0.79601]
[1749316381277,1.4561,2511.4,2511.3,0.79601]
[1749316381877,3.2078,2511.6,2511.3,0.79601]
[1749316382077,4.74388841,2511.7,2511.6,0.79594]
[1749316386186,4.67497669,2511.7,2511.6,0.79594]
[1749316386388,5.47088669,2511.7,2511.6,0.79594]
[1749316386990,6.60762387,2511.7,2511.6,0.79594]
[1749316387187,6.67653559,2511.7,2511.6,0.79594]
[1749316387883,0.79594,2511.6,2511.5,1.45985]
[1749316388183,1.21162559,2511.7,2511.6,0.79594]
[1749316388184,0.07488841,2511.7,2511.6,0.79594]
[1749316388385,2.00798424,2511.7,2511.6,0.79594]
[1749316388584,1.21207424,2511.7,2511.6,0.79594]
[1749316388881,2.00798424,2511.7,2511.6,0.79594]
[1749316389087,1.21207424,2511.7,2511.6,0.79594]
[1749316390491,2.00798424,2511.7,2511.6,0.79594]
[1749316390687,5.21578424,2511.7,2511.6,0.79594]
[1749316391789,6.56524015,2511.7,2511.6,0.79594]
[1749316392392,3.35744015,2511.7,2511.6,0.79594]
[1749316396892,3.35744015,2511.7,2511.3,0.632]
[1749316397100,1.93550692,2511.6,2511.5,0.79595]
[1749316399095,1.13954692,2511.6,2511.5,0.79595]
[1749316400396,2.00439864,2511.6,2511.5,0.79595]
[1749316402297,1.20845864,2511.6,2511.5,0.79595]
[1749316405799,2.00439864,2511.6,2511.5,0.79595]
[1749316406001,1.20845864,2511.6,2511.5,0.79595]
[1749316409398,2.00439864,2511.6,2511.5,0.79595]
[1749316409608,1.20845864,2511.6,2511.5,0.79595]
[1749316410406,2.00439864,2511.6,2511.5,0.79595]
[1749316410611,1.20845864,2511.6,2511.5,0.79595]
[1749316413404,1.20940022,2511.6,2511.5,0.79595]
[1749316416707,1.20940022,2511.6,2511.5,2.17735]
[1749316419407,3.2078,2512.0,2511.9,0.79585]
[1749316419611,4.34673489,2512.0,2511.9,0.79585]
[1749316420014,4.34298211,2512.0,2511.9,0.79585]
[1749316420213,3.2078,2512.0,2511.9,1.48835]
[1749316422215,0.63997669,2512.2,2512.1,0.79578]
[1749316422410,1.77316064,2512.2,2512.1,0.79578]
[1749316424119,2.56891064,2512.2,2512.1,0.79578]
[1749316424418,1.77316064,2512.2,2512.1,0.79578]
[1749316429925,1.84207236,2512.2,2512.1,0.79578]
[1749316430817,1.77316064,2512.2,2512.1,0.79578]
[1749316431617,3.2078,2512.4,2512.3,0.79572]
[1749316431920,3.2078,2512.8,2512.7,0.79559]
[1749316432827,3.2078,2512.8,2512.7,2.82829]
[1749316433136,0.00386741,2513.0,2512.9,0.79553]
[1749316444643,3.2078,2513.5,2513.4,0.79537]
[1749316444644,8.5129,2513.5,2513.4,0.79537]
[1749316446544,8.5129,2513.5,2513.3,0.79539]
[1749316446744,0.79543,2513.3,2513.2,0.79542]
[1749316449451,2.07689,2513.4,2513.3,0.7954]
[1749316454546,0.79539,2513.4,2513.3,0.7954]
[1749316455255,9.30826,2513.5,2513.4,0.79537]
[1749316457154,10.43402457,2513.5,2513.4,0.79537]
[1749316460450,3.8507,2513.9,2513.8,0.79524]
[1749316460647,10.44792759,2513.9,2513.8,0.79524]
[1749316461654,5.14202759,2513.9,2513.8,0.79524]
[1749316462757,4.34681759,2513.9,2513.6,0.6761]
[1749316463055,0.79526,2513.8,2513.7,0.79525]
[1749316464060,0.79524,2513.9,2513.8,0.79524]
[1749316464247,8.548,2514.0,2513.2,2.68145]
[1749316464449,0.06891172,2513.5,2513.4,0.6499]
[1749316464655,0.06891172,2513.5,2513.4,1.44527]
[1749316469163,0.86425172,2513.5,2513.4,1.44527]
[1749316469362,0.06891172,2513.5,2513.4,1.44527]
[1749316479368,1.21549378,2513.5,2513.4,1.44527]
[1749316480067,1.21549572,2513.5,2513.4,1.44527]
[1749316481066,2.01083572,2513.5,2513.4,1.44527]
[1749316481267,1.21549572,2513.5,2513.4,1.44527]
[1749316482268,2.01083572,2513.5,2513.4,1.44527]
[1749316482469,1.21549572,2513.5,2513.4,1.44527]
[1749316484570,2.01083572,2513.5,2513.4,1.44527]
[1749316484771,1.21549572,2513.5,2513.4,1.44527]
[1749316490073,2.01083572,2513.5,2513.4,0.6499]
[1749316490273,2.01083572,2513.5,2513.4,1.44527]
[1749316491474,1.21549572,2513.5,2513.4,1.44527]
[1749316492274,2.01083572,2513.5,2513.4,1.44527]
[1749316495473,2.01083572,2513.5,2513.4,0.6499]
[1749316496474,2.01083572,2513.5,2513.4,1.44527]
[1749316498272,2.01032605,2513.5,2513.4,1.44527]
[1749316499180,0.7954,2513.4,2513.3,0.79539]
[1749316499477,1.98854,2513.3,2512.9,0.778]
[1749316499682,0.79548,2513.1,2513.0,0.79547]
[1749316499871,1.14607433,2513.1,2513.0,0.79547]
[1749316503790,1.94154433,2513.1,2513.0,0.79547]
[1749316504290,0.79547,2513.1,2513.0,0.79547]
[1749316505190,0.79552,2513.0,2512.9,0.79551]
[1749316505586,3.2078,2513.4,2513.3,0.7954]
[1749316505888,0.79542,2513.3,2513.2,0.7954]
[1749316506090,2.57630761,2513.3,2513.2,0.7954]
[1749316510097,2.57630761,2513.3,2512.9,3.26321]
[1749316510098,0.79547,2513.2,2513.1,0.79544]
[1749316510397,1.94105761,2513.2,2513.1,0.79544]
[1749316511296,1.94101761,2513.2,2513.1,0.79544]
[1749316516087,1.14558761,2513.2,2513.1,0.79544]
[1749316517199,1.14558761,2513.2,2513.1,2.09494]
[1749316517696,4.658,2513.7,2513.2,1.98858]
[1749316517903,3.2078,2513.5,2513.1,1.2995]
[1749316518098,0.79543,2513.2,2513.1,2.09494]
[1749316518497,4.658,2513.2,2512.8,1.2977]
[1749316518703,1.80775333,2513.1,2512.8,0.6908]
[1749316518904,0.79553,2512.9,2512.8,1.48633]
[1749316519405,0.79559,2512.7,2512.6,0.6847]
[1749316519604,0.79559,2512.7,2512.6,1.48032]
[1749316519804,0.79559,2512.7,2512.6,0.6847]
[1749316520190,0.79559,2512.7,2512.6,1.48032]
[1749316520505,0.79559,2512.7,2512.6,0.6847]
[1749316521202,0.79559,2512.7,2512.6,1.48032]
[1749316521401,1.45268,2512.8,2512.7,0.79559]
[1749316521595,2.60341973,2512.8,2512.7,0.79559]
[1749316522497,1.15073973,2512.8,2512.7,0.79559]
[1749316522700,3.2078,2513.2,2513.1,0.79547]
[1749316522901,1.15039054,2513.2,2513.1,0.79547]
[1749316523103,5.45335,2513.5,2513.4,0.79537]
[1749316523298,0.79538,2513.4,2513.3,0.79538]
[1749316523503,1.15065104,2513.4,2513.3,0.79538]
[1749316527201,1.14664959,2513.4,2513.2,1.367]
[1749316527404,3.2078,2513.6,2513.4,0.79535]
[1749316527405,0.79534,2513.6,2513.4,0.79535]
[1749316527609,0.79529,2513.7,2513.6,0.7953]
[1749316527906,1.94203769,2513.7,2513.6,0.7953]
[1749316528303,1.14674769,2513.7,2513.2,3.2078]
[1749316528502,0.79539,2513.4,2513.2,3.2078]
[1749316528704,0.79539,2513.4,2513.2,4.00321]
[1749316529312,0.79539,2513.4,2513.3,0.7954]
[1749316529512,1.94201392,2513.4,2513.2,4.00322]
[1749316529712,0.7954,2513.3,2513.2,3.2078]
[1749316531506,0.7954,2513.3,2513.2,4.00323]
[1749316532713,0.7954,2513.3,2513.2,0.79543]
[1749316533308,0.79543,2513.2,2513.1,0.6765]
[1749316533516,0.79554,2512.9,2512.8,0.79555]
[1749316534012,0.79558,2512.8,2512.6,3.8785]
[1749316534213,1.14655968,2512.7,2512.6,4.6741]